[Event "*** SCC Grand Prix: Titled Tuesday Blitz"]
[Site "Chess.com"]
[Date "2020.07.07"]
[Round "6"]
[White "Infernal_XaM"]
[Black "Shield12"]
[Result "1-0"]
[WhiteElo "2947"]
[BlackElo "2832"]
[TimeControl "180+1"]
[EndTime "11:07:02 PDT"]
[Termination "Infernal_XaM won by resignation"]

1. d4 {[%clk 0:03:00.9]} 1... Nf6 {[%clk 0:02:59.8]} 2. c4 {[%clk 0:03:01.8]}
2... e6 {[%clk 0:03:00.3]} 3. Nf3 {[%clk 0:03:01.7]} 3... d5 {[%clk 0:03:00.6]}
4. Nc3 {[%clk 0:03:01.5]} 4... Bb4 {[%clk 0:03:00.6]} 5. Qa4+ {[%clk 0:02:59.5]}
5... Nc6 {[%clk 0:03:00.2]} 6. Bd2 {[%clk 0:03:00.1]} 6... O-O {[%clk
0:02:57.6]} 7. e3 {[%clk 0:03:00]} 7... a5 {[%clk 0:02:57.1]} 8. Rc1 {[%clk
0:02:57.7]} 8... Ne7 {[%clk 0:02:56.1]} 9. Bd3 {[%clk 0:02:49.6]} 9... b6 {[%clk
0:02:54.5]} 10. cxd5 {[%clk 0:02:48.8]} 10... exd5 {[%clk 0:02:52.7]} 11. O-O
{[%clk 0:02:47.5]} 11... Bb7 {[%clk 0:02:44.8]} 12. Ne5 {[%clk 0:02:46.4]} 12...
Ne4 {[%clk 0:02:35.6]} 13. Be1 {[%clk 0:02:46.3]} 13... f6 {[%clk 0:02:32.4]}
14. Nf3 {[%clk 0:02:42.5]} 14... Kh8 {[%clk 0:02:02]} 15. Qc2 {[%clk 0:02:41.7]}
15... f5 {[%clk 0:01:58.9]} 16. Ne5 {[%clk 0:02:41.9]} 16... Ng6 {[%clk
0:01:52.4]} 17. f3 {[%clk 0:02:20.1]} 17... Nxc3 {[%clk 0:01:45.4]} 18. bxc3
{[%clk 0:02:19.8]} 18... Ba3 {[%clk 0:01:44.8]} 19. Rd1 {[%clk 0:02:12.9]} 19...
Bd6 {[%clk 0:01:29.1]} 20. f4 {[%clk 0:01:47.3]} 20... Qf6 {[%clk 0:01:25.1]}
21. g4 {[%clk 0:01:27.5]} 21... Ne7 {[%clk 0:01:11.9]} 22. Nd7 {[%clk
0:01:03.8]} 22... Qe6 {[%clk 0:01:11.9]} 23. Nxf8 {[%clk 0:01:04.1]} 23... Rxf8
{[%clk 0:01:12.8]} 24. gxf5 {[%clk 0:01:03.4]} 24... Qxe3+ {[%clk 0:01:09]} 25.
Qf2 {[%clk 0:01:02.7]} 25... Qh3 {[%clk 0:00:55.4]} 26. Qg3 {[%clk 0:00:59.6]}
26... Qh5 {[%clk 0:00:54.6]} 27. Bd2 {[%clk 0:00:50.5]} 27... Nxf5 {[%clk
0:00:50]} 28. Qg5 {[%clk 0:00:50.9]} 28... Qh3 {[%clk 0:00:50.2]} 29. Bc1 {[%clk
0:00:41]} 29... Bc8 {[%clk 0:00:43.4]} 30. Qg2 {[%clk 0:00:36.7]} 30... Qh6
{[%clk 0:00:41.1]} 31. Qxd5 {[%clk 0:00:31.1]} 31... Rf6 {[%clk 0:00:34.3]} 32.
Rf2 {[%clk 0:00:18.2]} 32... Qh3 {[%clk 0:00:25.9]} 33. Rg2 {[%clk 0:00:11.3]}
33... Be6 {[%clk 0:00:16.5]} 34. Qe4 {[%clk 0:00:11.3]} 34... g6 {[%clk
0:00:14.4]} 35. Re1 {[%clk 0:00:10.9]} 35... Bd7 {[%clk 0:00:13.9]} 36. Bc4
{[%clk 0:00:08.8]} 36... Rf8 {[%clk 0:00:13.8]} 37. Qd3 {[%clk 0:00:07.3]} 37...
Qh4 {[%clk 0:00:13.5]} 38. Ree2 {[%clk 0:00:05.9]} 38... Bc6 {[%clk 0:00:13.5]}
39. d5 {[%clk 0:00:04.7]} 39... Bc5+ {[%clk 0:00:13.4]} 40. Kh1 {[%clk
0:00:04.3]} 40... Bd7 {[%clk 0:00:13.5]} 41. Bb5 {[%clk 0:00:04.5]} 41... Bxb5
{[%clk 0:00:12.6]} 42. Qxb5 {[%clk 0:00:04.6]} 42... Qh3 {[%clk 0:00:11.7]} 43.
Re1 {[%clk 0:00:03.5]} 43... Qf3 {[%clk 0:00:10.8]} 44. Qe2 {[%clk 0:00:03.7]}
44... Qxc3 {[%clk 0:00:10.5]} 45. Bb2 {[%clk 0:00:03.7]} 1-0

[Event "*** SCC Grand Prix: Titled Tuesday Blitz"]
[Site "Chess.com"]
[Date "2020.07.07"]
[Round "6"]
[White "Mikasinski"]
[Black "NikolaGry"]
[Result "1/2-1/2"]
[WhiteElo "2447"]
[BlackElo "2608"]
[TimeControl "180+1"]
[EndTime "11:07:03 PDT"]
[Termination "Game drawn by agreement"]

1. e4 {[%clk 0:03:00.9]} 1... d5 {[%clk 0:02:59.3]} 2. exd5 {[%clk 0:03:00.3]}
2... Nf6 {[%clk 0:02:59.9]} 3. d4 {[%clk 0:03:00.2]} 3... Nxd5 {[%clk
0:02:59.9]} 4. c4 {[%clk 0:03:00.4]} 4... Nb6 {[%clk 0:02:59.8]} 5. Nc3 {[%clk
0:03:00.4]} 5... e5 {[%clk 0:02:59.6]} 6. Qe2 {[%clk 0:03:00.4]} 6... Qxd4
{[%clk 0:02:56.4]} 7. Nf3 {[%clk 0:03:00.1]} 7... Qd8 {[%clk 0:02:56.3]} 8. Nxe5
{[%clk 0:02:59.6]} 8... Qe7 {[%clk 0:02:44.2]} 9. c5 {[%clk 0:02:47.5]} 9...
N6d7 {[%clk 0:02:40.2]} 10. Nxd7 {[%clk 0:02:07.5]} 10... Qxe2+ {[%clk
0:01:45.2]} 11. Bxe2 {[%clk 0:02:06.7]} 11... Kxd7 {[%clk 0:01:25.9]} 12. Be3
{[%clk 0:02:00.9]} 12... c6 {[%clk 0:01:21.3]} 13. O-O-O+ {[%clk 0:01:59.7]}
13... Ke8 {[%clk 0:01:19.8]} 14. Rhe1 {[%clk 0:01:47.5]} 14... Be6 {[%clk
0:01:11.9]} 15. f4 {[%clk 0:01:17.8]} 15... Nd7 {[%clk 0:01:08.8]} 16. b4 {[%clk
0:01:10.5]} 16... a5 {[%clk 0:01:06.9]} 17. a3 {[%clk 0:01:10.7]} 17... axb4
{[%clk 0:01:06]} 18. axb4 {[%clk 0:01:10.8]} 18... Bb3 {[%clk 0:01:02.8]} 19.
Rd4 {[%clk 0:01:02.5]} 19... Ra1+ {[%clk 0:01:01.3]} 20. Kd2 {[%clk 0:01:01.9]}
20... Rxe1 {[%clk 0:01:00]} 21. Kxe1 {[%clk 0:01:02.1]} 21... Be7 {[%clk
0:00:59.4]} 22. Re4 {[%clk 0:00:59.8]} 22... Nf6 {[%clk 0:00:56.5]} 23. Rd4
{[%clk 0:00:57]} 23... Nd5 {[%clk 0:00:54.2]} 24. Nxd5 {[%clk 0:00:54.7]} 24...
Bxd5 {[%clk 0:00:54.2]} 25. Kf2 {[%clk 0:00:52]} 25... Bf6 {[%clk 0:00:52.8]}
26. Rd1 {[%clk 0:00:49.6]} 26... Ke7 {[%clk 0:00:52.7]} 27. b5 {[%clk 0:00:48]}
27... Ra8 {[%clk 0:00:52.1]} 28. bxc6 {[%clk 0:00:45.3]} 28... bxc6 {[%clk
0:00:51.5]} 29. Rb1 {[%clk 0:00:45.5]} 29... Ra2 {[%clk 0:00:49.7]} 30. Rb7+
{[%clk 0:00:38.2]} 30... Ke6 {[%clk 0:00:45.9]} 31. Ke1 {[%clk 0:00:29]} 31...
Bc3+ {[%clk 0:00:42.9]} 32. Kd1 {[%clk 0:00:24.1]} 32... Bxg2 {[%clk 0:00:39.4]}
33. Bc4+ {[%clk 0:00:23.5]} 33... Bd5 {[%clk 0:00:37.7]} 34. Bxa2 {[%clk
0:00:23.3]} 34... Bxa2 {[%clk 0:00:36.5]} 35. Kc2 {[%clk 0:00:21]} 35... Bf6
{[%clk 0:00:36.2]} 36. Kd3 {[%clk 0:00:18.6]} 36... Bd5 {[%clk 0:00:34.4]} 37.
Bd4 {[%clk 0:00:18.4]} 37... h5 {[%clk 0:00:29.7]} 38. Bxf6 {[%clk 0:00:18]}
38... Kxf6 {[%clk 0:00:29.9]} 39. Kd4 {[%clk 0:00:16]} 39... Kf5 {[%clk
0:00:29.7]} 40. Rd7 {[%clk 0:00:15.9]} 40... Ke6 {[%clk 0:00:24.9]} 41. Rd6+
{[%clk 0:00:14.9]} 41... Ke7 {[%clk 0:00:25.1]} 42. Rxd5 {[%clk 0:00:14.8]}
42... cxd5 {[%clk 0:00:25.1]} 43. Kxd5 {[%clk 0:00:15.4]} 43... Kd7 {[%clk
0:00:25.4]} 44. f5 {[%clk 0:00:11.2]} 44... h4 {[%clk 0:00:23.6]} 45. h3 {[%clk
0:00:10.2]} 45... g5 {[%clk 0:00:22.3]} 46. fxg6 {[%clk 0:00:08.4]} 46... fxg6
{[%clk 0:00:22.4]} 47. Ke5 {[%clk 0:00:03.6]} 47... Kc6 {[%clk 0:00:22.4]} 48.
Kf6 {[%clk 0:00:03.8]} 48... Kxc5 {[%clk 0:00:22.7]} 49. Kxg6 {[%clk 0:00:04.4]}
49... Kd6 {[%clk 0:00:22.9]} 50. Kh5 {[%clk 0:00:04.6]} 50... Ke7 {[%clk
0:00:23.1]} 51. Kxh4 {[%clk 0:00:05.3]} 51... Kf8 {[%clk 0:00:22.5]} 1/2-1/2

[Event "*** SCC Grand Prix: Titled Tuesday Blitz"]
[Site "Chess.com"]
[Date "2020.07.07"]
[Round "6"]
[White "tteshan"]
[Black "JiiHart"]
[Result "1/2-1/2"]
[WhiteElo "2273"]
[BlackElo "2128"]
[TimeControl "180+1"]
[EndTime "11:07:03 PDT"]
[Termination "Game drawn by agreement"]

1. d4 {[%clk 0:03:00.9]} 1... e6 {[%clk 0:02:59.2]} 2. Nf3 {[%clk 0:03:00.1]}
2... Nf6 {[%clk 0:02:58.5]} 3. Bf4 {[%clk 0:02:59.4]} 3... c5 {[%clk 0:02:56.6]}
4. e3 {[%clk 0:02:59]} 4... Qb6 {[%clk 0:02:54]} 5. Nc3 {[%clk 0:02:40.4]} 5...
cxd4 {[%clk 0:02:49.2]} 6. Nxd4 {[%clk 0:02:37.4]} 6... Bb4 {[%clk 0:02:44.4]}
7. Qd2 {[%clk 0:02:25.6]} 7... Nd5 {[%clk 0:02:38.3]} 8. Bg3 {[%clk 0:02:11.9]}
8... Qa5 {[%clk 0:02:18.7]} 9. Nb3 {[%clk 0:01:52.8]} 9... Bxc3 {[%clk
0:01:54.2]} 10. Nxa5 {[%clk 0:01:51.7]} 10... Bxd2+ {[%clk 0:01:53.4]} 11. Kxd2
{[%clk 0:01:52.6]} 11... Nc6 {[%clk 0:01:28.4]} 12. Nc4 {[%clk 0:01:46.2]} 12...
O-O {[%clk 0:01:23]} 13. Nd6 {[%clk 0:01:40]} 13... f5 {[%clk 0:01:14.1]} 14. c4
{[%clk 0:01:27.5]} 14... Nf6 {[%clk 0:01:08.5]} 15. Bd3 {[%clk 0:01:18.6]} 15...
g6 {[%clk 0:01:06.1]} 16. a3 {[%clk 0:01:10.9]} 16... e5 {[%clk 0:01:04.2]} 17.
Bb1 {[%clk 0:01:04.3]} 17... Ne8 {[%clk 0:01:01.1]} 18. Nb5 {[%clk 0:00:43.6]}
18... a6 {[%clk 0:00:58.9]} 19. Nc3 {[%clk 0:00:40.9]} 19... Nf6 {[%clk
0:00:55.1]} 20. Bh4 {[%clk 0:00:38]} 20... d6 {[%clk 0:00:51.4]} 21. Bxf6 {[%clk
0:00:36.4]} 21... Rxf6 {[%clk 0:00:50.9]} 22. Nd5 {[%clk 0:00:37.3]} 22... Rf7
{[%clk 0:00:51]} 23. Nb6 {[%clk 0:00:35.6]} 23... Rb8 {[%clk 0:00:50.4]} 24. Ba2
{[%clk 0:00:34.5]} 24... Be6 {[%clk 0:00:49.4]} 25. Kc3 {[%clk 0:00:28.1]} 25...
Rc7 {[%clk 0:00:42.3]} 26. Kd2 {[%clk 0:00:15.1]} 26... Rd8 {[%clk 0:00:35.1]}
27. Ke2 {[%clk 0:00:14.9]} 27... Ne7 {[%clk 0:00:32.6]} 28. Rhd1 {[%clk
0:00:14]} 28... Rc6 {[%clk 0:00:25.1]} 29. Nd5 {[%clk 0:00:13.6]} 29... Bxd5
{[%clk 0:00:21.1]} 30. cxd5 {[%clk 0:00:13.4]} 30... Rc2+ {[%clk 0:00:21.1]} 31.
Rd2 {[%clk 0:00:12.7]} 31... Rdc8 {[%clk 0:00:20.8]} 32. Rd1 {[%clk 0:00:11.7]}
32... R8c5 {[%clk 0:00:18.5]} 33. f3 {[%clk 0:00:11.4]} 33... Rxd2+ {[%clk
0:00:16.1]} 34. Rxd2 {[%clk 0:00:12.3]} 34... Kf7 {[%clk 0:00:16.2]} 35. e4
{[%clk 0:00:11.5]} 35... Kf6 {[%clk 0:00:16]} 36. b4 {[%clk 0:00:10.1]} 36...
Rc3 {[%clk 0:00:14.9]} 37. Rd3 {[%clk 0:00:09.6]} 37... Rxd3 {[%clk 0:00:14.5]}
38. Kxd3 {[%clk 0:00:10.5]} 38... fxe4+ {[%clk 0:00:14.8]} 39. fxe4 {[%clk
0:00:11.1]} 39... Kg5 {[%clk 0:00:14.4]} 40. Bb3 {[%clk 0:00:10.8]} 40... Kf4
{[%clk 0:00:12.3]} 41. Bd1 {[%clk 0:00:10.4]} 41... h5 {[%clk 0:00:10.6]} 42.
Bf3 {[%clk 0:00:08.7]} 42... Kg5 {[%clk 0:00:10.2]} 43. Ke3 {[%clk 0:00:07.8]}
43... Kf6 {[%clk 0:00:09.8]} 44. g3 {[%clk 0:00:06.8]} 44... Nc8 {[%clk
0:00:08]} 45. Be2 {[%clk 0:00:07]} 45... Nb6 {[%clk 0:00:07.6]} 46. Bd3 {[%clk
0:00:06.1]} 46... Nd7 {[%clk 0:00:06.4]} 47. Bc4 {[%clk 0:00:05.8]} 1/2-1/2

[Event "*** SCC Grand Prix: Titled Tuesday Blitz"]
[Site "Chess.com"]
[Date "2020.07.07"]
[Round "6"]
[White "bratkoo"]
[Black "BJthechessgod"]
[Result "0-1"]
[WhiteElo "2435"]
[BlackElo "2331"]
[TimeControl "180+1"]
[EndTime "11:07:04 PDT"]
[Termination "BJthechessgod won by checkmate"]

1. e4 {[%clk 0:03:00.9]} 1... c5 {[%clk 0:03:00.6]} 2. Nf3 {[%clk 0:03:00.4]}
2... Nc6 {[%clk 0:03:01.2]} 3. Nc3 {[%clk 0:02:52.1]} 3... g6 {[%clk 0:02:59.8]}
4. d4 {[%clk 0:02:48.8]} 4... cxd4 {[%clk 0:03:00.3]} 5. Nxd4 {[%clk 0:02:48.7]}
5... Bg7 {[%clk 0:03:00.8]} 6. Be3 {[%clk 0:02:47.7]} 6... Nf6 {[%clk
0:03:00.5]} 7. Bc4 {[%clk 0:02:46]} 7... O-O {[%clk 0:03:00.5]} 8. f3 {[%clk
0:02:46.2]} 8... Qb6 {[%clk 0:02:57.1]} 9. Qd2 {[%clk 0:02:42.9]} 9... Nxe4
{[%clk 0:02:54.9]} 10. fxe4 {[%clk 0:02:43.1]} 10... Bxd4 {[%clk 0:02:52.4]} 11.
Bxd4 {[%clk 0:02:43]} 11... Qxd4 {[%clk 0:02:53.2]} 12. Qxd4 {[%clk 0:02:43]}
12... Nxd4 {[%clk 0:02:54.1]} 13. O-O-O {[%clk 0:02:43.5]} 13... Nc6 {[%clk
0:02:52.6]} 14. Rhf1 {[%clk 0:02:44]} 14... d6 {[%clk 0:02:50.7]} 15. Rf2 {[%clk
0:02:41.6]} 15... Be6 {[%clk 0:02:49.3]} 16. Bd5 {[%clk 0:02:41.9]} 16... Rac8
{[%clk 0:02:40.7]} 17. a3 {[%clk 0:02:31.3]} 17... Kg7 {[%clk 0:02:29.5]} 18.
Rdf1 {[%clk 0:02:31.3]} 18... Bxd5 {[%clk 0:02:20.7]} 19. Nxd5 {[%clk
0:02:31.2]} 19... e6 {[%clk 0:02:21.1]} 20. Nf6 {[%clk 0:02:26.5]} 20... Ne5
{[%clk 0:02:20.6]} 21. Kb1 {[%clk 0:02:20.3]} 21... Rc4 {[%clk 0:02:14.4]} 22.
h4 {[%clk 0:02:20]} 22... h5 {[%clk 0:02:11.1]} 23. Rd2 {[%clk 0:02:15.8]} 23...
Rc6 {[%clk 0:02:03.1]} 24. c3 {[%clk 0:02:16]} 24... Rfc8 {[%clk 0:02:00.5]} 25.
Rdf2 {[%clk 0:02:15.9]} 25... b5 {[%clk 0:01:57.2]} 26. g4 {[%clk 0:01:59.8]}
26... hxg4 {[%clk 0:01:48.9]} 27. h5 {[%clk 0:01:59.8]} 27... R6c7 {[%clk
0:01:39.6]} 28. hxg6 {[%clk 0:01:51.2]} 28... fxg6 {[%clk 0:01:38.3]} 29. Rh1
{[%clk 0:01:51.1]} 29... Rh8 {[%clk 0:01:29.2]} 30. Rxh8 {[%clk 0:01:49.6]}
30... Kxh8 {[%clk 0:01:30.1]} 31. Rh2+ {[%clk 0:01:44.7]} 31... Kg7 {[%clk
0:01:27]} 32. Ne8+ {[%clk 0:01:44.9]} 32... Kf7 {[%clk 0:01:22.6]} 33. Nxc7
{[%clk 0:01:45.8]} 33... Kf6 {[%clk 0:01:15.3]} 34. Rf2+ {[%clk 0:01:41.8]}
34... Nf3 {[%clk 0:01:10.3]} 35. Nxb5 {[%clk 0:01:41.8]} 35... Ke5 {[%clk
0:01:09]} 36. Kc2 {[%clk 0:01:41.4]} 36... Kf4 {[%clk 0:01:06.9]} 37. Nd4 {[%clk
0:01:37.4]} 37... e5 {[%clk 0:01:04.7]} 38. Nxf3 {[%clk 0:01:17.8]} 38... gxf3
{[%clk 0:01:04.7]} 39. Kd2 {[%clk 0:01:18.3]} 39... g5 {[%clk 0:00:55.9]} 40.
Ke1 {[%clk 0:01:16.7]} 40... g4 {[%clk 0:00:56.1]} 41. Rd2 {[%clk 0:01:16.4]}
41... g3 {[%clk 0:00:47.5]} 42. Rxd6 {[%clk 0:01:10.5]} 42... Ke3 {[%clk
0:00:47.6]} 43. Kf1 {[%clk 0:01:07.9]} 43... Kxe4 {[%clk 0:00:38.8]} 44. c4
{[%clk 0:01:06.1]} 44... Kf4 {[%clk 0:00:27.3]} 45. c5 {[%clk 0:01:04.2]} 45...
e4 {[%clk 0:00:27.4]} 46. c6 {[%clk 0:00:39.6]} 46... e3 {[%clk 0:00:27.5]} 47.
Rf6+ {[%clk 0:00:39.7]} 47... Ke4 {[%clk 0:00:27.2]} 48. Re6+ {[%clk 0:00:21]}
48... Kd3 {[%clk 0:00:22.5]} 49. c7 {[%clk 0:00:18.8]} 49... e2+ {[%clk
0:00:19]} 50. Rxe2 {[%clk 0:00:14.7]} 50... fxe2+ {[%clk 0:00:19.1]} 51. Ke1
{[%clk 0:00:12.8]} 51... g2 {[%clk 0:00:19.2]} 52. Kf2 {[%clk 0:00:12.4]} 52...
e1=Q+ {[%clk 0:00:16.4]} 53. Kxg2 {[%clk 0:00:10.5]} 53... Qe4+ {[%clk
0:00:13.7]} 54. Kf2 {[%clk 0:00:10.8]} 54... Qf4+ {[%clk 0:00:13.2]} 55. Ke1
{[%clk 0:00:11.4]} 55... Qxc7 {[%clk 0:00:14.1]} 56. a4 {[%clk 0:00:12]} 56...
Qc2 {[%clk 0:00:13.5]} 57. b4 {[%clk 0:00:12.7]} 57... Qe2# {[%clk 0:00:13.6]}
0-1

[Event "*** SCC Grand Prix: Titled Tuesday Blitz"]
[Site "Chess.com"]
[Date "2020.07.07"]
[Round "6"]
[White "VovenRogel"]
[Black "TigrVShlyape"]
[Result "1/2-1/2"]
[WhiteElo "2720"]
[BlackElo "2887"]
[TimeControl "180+1"]
[EndTime "11:07:05 PDT"]
[Termination "Game drawn - insufficient material"]

1. d4 {[%clk 0:03:00.9]} 1... Nf6 {[%clk 0:02:52.4]} 2. c4 {[%clk 0:03:00.4]}
2... g6 {[%clk 0:02:52.3]} 3. Nc3 {[%clk 0:03:00]} 3... Bg7 {[%clk 0:02:52.6]}
4. e4 {[%clk 0:02:59.5]} 4... d6 {[%clk 0:02:53]} 5. Nf3 {[%clk 0:02:59.9]} 5...
O-O {[%clk 0:02:52.3]} 6. Be2 {[%clk 0:03:00.3]} 6... e5 {[%clk 0:02:51.5]} 7.
O-O {[%clk 0:03:00.6]} 7... Nc6 {[%clk 0:02:49.8]} 8. d5 {[%clk 0:03:00]} 8...
Ne7 {[%clk 0:02:49.2]} 9. b4 {[%clk 0:03:00.3]} 9... Ne8 {[%clk 0:02:47.1]} 10.
a4 {[%clk 0:02:57.9]} 10... f5 {[%clk 0:02:45]} 11. a5 {[%clk 0:02:53]} 11...
Nf6 {[%clk 0:02:35.8]} 12. Bd3 {[%clk 0:02:32.7]} 12... fxe4 {[%clk 0:02:26.5]}
13. Nxe4 {[%clk 0:02:33.6]} 13... Bg4 {[%clk 0:02:24.7]} 14. Rb1 {[%clk
0:01:42.1]} 14... Nf5 {[%clk 0:01:37.1]} 15. h3 {[%clk 0:01:36.2]} 15... Bxf3
{[%clk 0:01:32.8]} 16. Qxf3 {[%clk 0:01:37.1]} 16... Bh6 {[%clk 0:01:10.6]} 17.
Bxh6 {[%clk 0:01:28.5]} 17... Nxh6 {[%clk 0:01:09.4]} 18. Ng5 {[%clk 0:01:04.1]}
18... Nfg4 {[%clk 0:01:02.7]} 19. Qg3 {[%clk 0:00:26.6]} 19... Qxg5 {[%clk
0:01:01.9]} 20. hxg4 {[%clk 0:00:26.7]} 20... Qxg4 {[%clk 0:00:59.3]} 21. Qxg4
{[%clk 0:00:24.1]} 21... Nxg4 {[%clk 0:00:58.5]} 22. a6 {[%clk 0:00:23.8]} 22...
b6 {[%clk 0:00:57]} 23. c5 {[%clk 0:00:22.5]} 23... Kg7 {[%clk 0:00:47.1]} 24.
Rbc1 {[%clk 0:00:18]} 24... dxc5 {[%clk 0:00:41.4]} 25. bxc5 {[%clk 0:00:18.9]}
25... Rad8 {[%clk 0:00:41.3]} 26. d6 {[%clk 0:00:18.4]} 26... cxd6 {[%clk
0:00:24.4]} 27. cxb6 {[%clk 0:00:17.5]} 27... axb6 {[%clk 0:00:24.5]} 28. Rc6
{[%clk 0:00:17.7]} 28... d5 {[%clk 0:00:21.4]} 29. Be2 {[%clk 0:00:17.7]} 29...
Nf6 {[%clk 0:00:20.7]} 30. Rxb6 {[%clk 0:00:17]} 30... Rf7 {[%clk 0:00:20.8]}
31. Re6 {[%clk 0:00:15.2]} 31... e4 {[%clk 0:00:20]} 32. Ra1 {[%clk 0:00:13.7]}
32... Rdd7 {[%clk 0:00:18.5]} 33. Bb5 {[%clk 0:00:11.9]} 33... Ra7 {[%clk
0:00:18.6]} 34. Rd6 {[%clk 0:00:11.6]} 34... h5 {[%clk 0:00:16.3]} 35. Ra2
{[%clk 0:00:09.7]} 35... h4 {[%clk 0:00:16.2]} 36. Be2 {[%clk 0:00:06.1]} 36...
Kh6 {[%clk 0:00:16.1]} 37. Bd1 {[%clk 0:00:06.1]} 37... Kg5 {[%clk 0:00:16.6]}
38. Bb3 {[%clk 0:00:06]} 38... Kf5 {[%clk 0:00:15.8]} 39. Bxd5 {[%clk
0:00:05.5]} 39... Ke5 {[%clk 0:00:15.5]} 40. Bxf7 {[%clk 0:00:05.2]} 40... Kxd6
{[%clk 0:00:15.8]} 41. Bxg6 {[%clk 0:00:06.1]} 41... Kc5 {[%clk 0:00:15.6]} 42.
f3 {[%clk 0:00:04.5]} 42... exf3 {[%clk 0:00:15.3]} 43. gxf3 {[%clk 0:00:05.4]}
43... Kb6 {[%clk 0:00:15.7]} 44. Kh2 {[%clk 0:00:04.6]} 44... Rxa6 {[%clk
0:00:14.8]} 45. Rxa6+ {[%clk 0:00:04.3]} 45... Kxa6 {[%clk 0:00:14.6]} 46. Kh3
{[%clk 0:00:05.2]} 46... Kb6 {[%clk 0:00:14.9]} 47. Kxh4 {[%clk 0:00:06.1]}
47... Kc5 {[%clk 0:00:15]} 48. Kg5 {[%clk 0:00:06.2]} 48... Nd5 {[%clk
0:00:14.5]} 49. Bf7 {[%clk 0:00:06.3]} 49... Ne3 {[%clk 0:00:14.6]} 50. f4
{[%clk 0:00:06.1]} 50... Kd4 {[%clk 0:00:14.9]} 51. f5 {[%clk 0:00:05.1]} 51...
Nxf5 {[%clk 0:00:14.7]} 1/2-1/2

[Event "*** SCC Grand Prix: Titled Tuesday Blitz"]
[Site "Chess.com"]
[Date "2020.07.07"]
[Round "6"]
[White "praveenb2002"]
[Black "pedromartinez91"]
[Result "1/2-1/2"]
[WhiteElo "2699"]
[BlackElo "2554"]
[TimeControl "180+1"]
[EndTime "11:07:05 PDT"]
[Termination "Game drawn by repetition"]

1. e4 {[%clk 0:03:00.9]} 1... e6 {[%clk 0:03:00.1]} 2. d4 {[%clk 0:02:58.2]}
2... d5 {[%clk 0:03:00.7]} 3. Nc3 {[%clk 0:02:58.8]} 3... Nf6 {[%clk 0:03:01.1]}
4. e5 {[%clk 0:02:57.1]} 4... Ne4 {[%clk 0:03:01]} 5. Nxe4 {[%clk 0:02:50.4]}
5... dxe4 {[%clk 0:03:01.9]} 6. Be3 {[%clk 0:02:50.7]} 6... c5 {[%clk
0:02:59.6]} 7. dxc5 {[%clk 0:02:51]} 7... Nd7 {[%clk 0:02:58.7]} 8. Qd4 {[%clk
0:02:45.5]} 8... Bxc5 {[%clk 0:02:57.7]} 9. Qxe4 {[%clk 0:02:45.7]} 9... Bxe3
{[%clk 0:02:58.4]} 10. Qxe3 {[%clk 0:02:45.6]} 10... Qa5+ {[%clk 0:02:59.3]} 11.
c3 {[%clk 0:02:44.3]} 11... Qxe5 {[%clk 0:02:59.9]} 12. Qxe5 {[%clk 0:02:42.2]}
12... Nxe5 {[%clk 0:03:00.8]} 13. Be2 {[%clk 0:02:39.8]} 13... Bd7 {[%clk
0:02:57.7]} 14. Nf3 {[%clk 0:02:39.1]} 14... Nc6 {[%clk 0:02:49.8]} 15. O-O-O
{[%clk 0:02:32.2]} 15... O-O-O {[%clk 0:02:48.9]} 16. Ng5 {[%clk 0:02:28.5]}
16... Rdf8 {[%clk 0:02:43.9]} 17. Rd2 {[%clk 0:02:24.9]} 17... f6 {[%clk
0:02:35.7]} 18. Ne4 {[%clk 0:02:18.5]} 18... Kc7 {[%clk 0:02:33.6]} 19. Rhd1
{[%clk 0:02:17]} 19... Bc8 {[%clk 0:02:33.4]} 20. Nd6 {[%clk 0:02:14.4]} 20...
Rd8 {[%clk 0:02:22.7]} 21. Bf3 {[%clk 0:02:13.6]} 21... Rd7 {[%clk 0:02:05.3]}
22. Nb5+ {[%clk 0:01:59.5]} 22... Kd8 {[%clk 0:01:56.6]} 23. Bxc6 {[%clk
0:01:35.5]} 23... bxc6 {[%clk 0:01:57.5]} 24. Nxa7 {[%clk 0:01:34.4]} 24... Rxd2
{[%clk 0:01:50.7]} 25. Rxd2+ {[%clk 0:01:35.3]} 25... Kc7 {[%clk 0:01:50.8]} 26.
Nxc8 {[%clk 0:01:35.6]} 26... Rxc8 {[%clk 0:01:51.7]} 27. b4 {[%clk 0:01:32.1]}
27... h5 {[%clk 0:01:41.2]} 28. Kb2 {[%clk 0:01:29.1]} 28... h4 {[%clk
0:01:41.5]} 29. a4 {[%clk 0:01:27.6]} 29... e5 {[%clk 0:01:40.9]} 30. Kb3 {[%clk
0:01:27.2]} 30... e4 {[%clk 0:01:41.2]} 31. a5 {[%clk 0:01:25.6]} 31... f5
{[%clk 0:01:41.3]} 32. g3 {[%clk 0:01:25.7]} 32... g5 {[%clk 0:01:38.8]} 33. c4
{[%clk 0:01:23.2]} 33... f4 {[%clk 0:01:38.7]} 34. Re2 {[%clk 0:01:06.7]} 34...
e3 {[%clk 0:01:37]} 35. fxe3 {[%clk 0:01:04.7]} 35... f3 {[%clk 0:01:37.1]} 36.
Rf2 {[%clk 0:01:04.4]} 36... g4 {[%clk 0:01:37.4]} 37. gxh4 {[%clk 0:00:19.7]}
37... Re8 {[%clk 0:01:35.6]} 38. Kc3 {[%clk 0:00:14.4]} 38... Rxe3+ {[%clk
0:01:34.3]} 39. Kd2 {[%clk 0:00:15]} 39... Rb3 {[%clk 0:01:32.8]} 40. Rf1 {[%clk
0:00:12.9]} 40... Rxb4 {[%clk 0:01:29.8]} 41. Rg1 {[%clk 0:00:10.9]} 41... Rb2+
{[%clk 0:01:25.8]} 42. Ke3 {[%clk 0:00:10.4]} 42... Re2+ {[%clk 0:01:26.2]} 43.
Kd3 {[%clk 0:00:07.3]} 43... Rg2 {[%clk 0:01:24.4]} 44. Rf1 {[%clk 0:00:04.9]}
44... Rxh2 {[%clk 0:01:24.6]} 45. Ke3 {[%clk 0:00:05.2]} 45... Rc2 {[%clk
0:01:09.5]} 46. Kf4 {[%clk 0:00:01.9]} 46... Rxc4+ {[%clk 0:01:08]} 47. Kg3
{[%clk 0:00:02.2]} 47... Kd7 {[%clk 0:00:50]} 48. h5 {[%clk 0:00:02.6]} 48...
Ke7 {[%clk 0:00:50.2]} 49. h6 {[%clk 0:00:02.7]} 49... Kf7 {[%clk 0:00:49.7]}
50. a6 {[%clk 0:00:03.2]} 50... Kg6 {[%clk 0:00:48.7]} 51. Ra1 {[%clk
0:00:02.8]} 51... Rc2 {[%clk 0:00:46]} 52. a7 {[%clk 0:00:03.3]} 52... Rg2+
{[%clk 0:00:43.3]} 53. Kh4 {[%clk 0:00:03.8]} 53... Kf5 {[%clk 0:00:30.7]} 54.
a8=Q {[%clk 0:00:03.2]} 54... Rh2+ {[%clk 0:00:30.1]} 55. Kg3 {[%clk 0:00:03.1]}
55... Rg2+ {[%clk 0:00:30.2]} 56. Kh4 {[%clk 0:00:03.8]} 56... Rh2+ {[%clk
0:00:29.6]} 57. Kg3 {[%clk 0:00:04.4]} 57... Rg2+ {[%clk 0:00:30.1]} 58. Kh4
{[%clk 0:00:04.9]} 1/2-1/2